fUSD/lending_fUSD_20250123
["ID","MTS","AMOUNT","RATE_DAILY","PERIOD"]
[350163211,1737663909110,10000.0,0.00012,2]
[350163212,1737663909133,10000.0,0.00012,2]
[350163213,1737663909159,10000.0,0.00012,2]
[350163214,1737663909181,10000.0,0.00012,2]
[350163215,1737663909204,10000.0,0.00012,2]
[350163216,1737663909226,10000.0,0.00012,2]
[350163217,1737663909252,10000.0,0.00012,2]
[350163218,1737663909275,10000.0,0.00012,2]
[350163219,1737663909296,10000.0,0.00012,2]
[350163220,1737663909319,10000.0,0.00012,2]
[350163221,1737663909342,10000.0,0.00012,2]
[350163222,1737663909364,10000.0,0.00012,2]
[350163223,1737663909571,10000.0,0.00012,2]
[350163224,1737663909595,10000.0,0.00012,2]
[350163225,1737663909618,10000.0,0.00012,2]
[350163226,1737663909640,10000.0,0.00012,2]
[350163227,1737663909662,10000.0,0.00012,2]
[350163228,1737663909683,10000.0,0.00012,2]
[350163229,1737663909705,10000.0,0.00012,2]
[350163230,1737663909735,10000.0,0.00012,2]
[350163231,1737663909760,10000.0,0.00012,2]
[350163232,1737663909783,10000.0,0.00012,2]
[350163233,1737663909806,10000.0,0.00012,2]
[350163234,1737663909829,10000.0,0.00012,2]
[350163235,1737663909852,10000.0,0.00012,2]
[350163236,1737663909874,10000.0,0.00012,2]
[350163237,1737663909896,10000.0,0.00012,2]
[350163238,1737663909918,10000.0,0.00012,2]
[350163239,1737663909940,10000.0,0.00012,2]
[350163240,1737663909962,10000.0,0.00012,2]
[350163241,1737663909984,10000.0,0.00012,2]
[350163242,1737663910009,10000.0,0.00012,2]
[350163243,1737663910031,10000.0,0.00012,2]
[350163244,1737663910054,10000.0,0.00012,2]
[350163245,1737663910079,10000.0,0.00012,2]
[350163246,1737663910102,10000.0,0.00012,2]
[350163247,1737663910125,10000.0,0.00012,2]
[350163248,1737663910147,10000.0,0.00012,2]
[350163249,1737663910171,10000.0,0.00012,2]
[350163250,1737663910193,10000.0,0.00012,2]
[350163251,1737663910216,10000.0,0.00012,2]
[350163252,1737663910239,10000.0,0.00012,2]
[350163253,1737663910265,10000.0,0.00012,2]
[350163254,1737663910286,10000.0,0.00012,2]
[350163255,1737663910309,10000.0,0.00012,2]
[350163256,1737663910338,10000.0,0.00012,2]
[350163257,1737663910361,10000.0,0.00012,2]
[350163258,1737663910386,118603.74112877,0.00012,2]
[350163259,1737663920597,446.04842915,9e-05,2]
[350163267,1737664035520,205.0,9.8e-05,2]
[350163270,1737664058319,3071.56533952,0.0001,2]
[350163271,1737664074815,28534.54878928,0.0001,2]
[350163272,1737664075655,6310.90733176,0.0001,2]
[350163289,1737664232288,-196.62,0.00012329,2]
[350163290,1737664232298,-113.18272094,0.00014668,2]
[350163291,1737664232310,-650.15727906,0.00014668,2]
[350163292,1737664232320,-463.64146827,0.00015,2]
[350163293,1737664232332,-86.35853173,0.00015,2]
[350163294,1737664232341,-350.3885,0.00015602,2]
[350163295,1737664232351,-210.5630548,0.00015629,2]
[350163296,1737664232360,-54.78298747,0.00015729,2]
[350163297,1737664232387,-145.21701253,0.00015729,2]
[350163298,1737664232396,-292.56092527,0.00015881,2]
[350163299,1737664232465,-1964.53527473,0.00015881,2]
[350163300,1737664232475,-200.0,0.0001592,2]
[350163301,1737664232484,-460.77,0.00015957,2]
[350163302,1737664232499,-55.53153598,0.0001598,2]
[350163303,1737664232580,-244.46846402,0.0001598,2]
[350163304,1737664232590,-5751.06245606,0.00015981,2]
[350163305,1737664232601,-18148.93754394,0.00015981,2]
[350163306,1737664232610,-727.22,0.00016096,2]
[350163307,1737664232620,-476.16547949,0.000162,2]
[350163308,1737664232639,-72.75713399,0.000162,2]
[350163309,1737664232648,-405.0,0.00016283,2]
[350163310,1737664232658,-457.21,0.00016284,2]
[350163311,1737664232667,-2072.8922473,0.00016284,2]
[350163312,1737664232678,-19851.8977527,0.00016284,2]
[350163313,1737664232688,-70436.39686431,0.000163,4]
[350163314,1737664232697,-5633.62,0.00016327,2]
[350163316,1737664232707,-250.0,0.00016345,2]
[350163318,1737664232716,-250.0,0.0001643,2]
[350163320,1737664232725,-1000.0,0.0001643,2]
[350163322,1737664232733,-250.0,0.00016496,2]
[350163324,1737664232747,-1247.8447064,0.00016567,2]
[350163326,1737664232756,-234.51147319,0.00016572,2]
[350163327,1737664232765,-200.0,0.00016574,2]
[350163329,1737664232774,-200.0,0.00016579,2]
[350163330,1737664232783,-1247.8447064,0.00016584,2]
[350163342,1737664232968,-1247.8447064,0.00016585,2]
[350163345,1737664232978,-3102.99922641,0.00016586,2]
[350163348,1737664232987,-910.41554869,0.00016586,2]
[350163351,1737664233004,-2192.58367772,0.00016586,2]
[350163354,1737664233013,-1247.8447064,0.0001659,2]
[350163357,1737664233024,-695.48156588,0.00016592,2]
[350163362,1737664233037,-348.89010204,0.00016592,2]
[350163365,1737664233049,-2058.62755849,0.00016592,2]
[350163368,1737664233058,-200.0,0.00016598,2]
[350163370,1737664233067,-200.0,0.00016604,2]
[350163373,1737664233077,-200.0,0.00016605,2]
[350163376,1737664233087,-1247.8447064,0.00016607,2]
[350163378,1737664233097,-234.51147319,0.00016612,2]
[350163379,1737664233107,-200.0,0.00016613,2]
[350163381,1737664233116,-11170.26217068,0.00016617,2]
[350163384,1737664233126,-200.0,0.00016625,2]
[350163387,1737664233136,-200.0,0.00016627,2]
[350163389,1737664233147,-234.51147319,0.0001663,2]
[350163391,1737664233156,-11170.26217068,0.00016631,2]
[350163393,1737664233166,-234.51147319,0.00016631,2]
[350163395,1737664233175,-163.24,0.00016632,2]
[350163397,1737664233185,-200.0,0.00016634,2]
[350163399,1737664233195,-11170.26217068,0.00016643,2]
[350163401,1737664233205,-200.0,0.00016662,2]
[350163403,1737664233214,-3102.99922641,0.00016669,2]
[350163405,1737664233223,-200.0,0.0001667,2]
[350163407,1737664233233,-200.0,0.0001668,2]
[350163409,1737664233246,-200.0,0.00016681,2]
[350163411,1737664233255,-200.0,0.00016682,2]
[350163413,1737664233265,-234.51147319,0.00016684,2]
[350163415,1737664233275,-11170.26217068,0.00016689,2]
[350163417,1737664233285,-200.0,0.00016689,2]
[350163419,1737664233294,-3102.99922641,0.00016695,2]
[350163421,1737664233304,-11170.26217068,0.00016699,2]
[350163423,1737664233314,-477.39,0.00016813,2]
[350163425,1737664233325,-150.0,0.00016835,2]
[350163427,1737664233334,-8863.2473,0.00016899,2]
[350163429,1737664233344,-241.94461136,0.000169,2]
[350163431,1737664233353,-763.34,0.00016932,2]
[350163433,1737664233362,-500.0,0.00016959,2]
[350163435,1737664233372,-506.22125084,0.00016998,2]
[350163437,1737664233381,-35442.3595,0.00016999,2]
[350163439,1737664233390,-14580.818,0.00016999,2]
[350163441,1737664233399,-600.0,0.00017,2]
[350163442,1737664233409,-241.94461114,0.00017072,2]
[350163443,1737664233418,-500.0,0.00017098,2]
[350163444,1737664233427,-500.0,0.00017098,2]
[350163445,1737664233436,-500.0,0.00017098,2]
[350163446,1737664233445,-232.42791185,0.00017098,2]
[350163447,1737664233456,-500.0,0.00017098,2]
[350163448,1737664233465,-500.0,0.00017098,2]
[350163449,1737664233475,-500.0,0.00017098,2]
[350163450,1737664233485,-500.0,0.00017098,2]
[350163451,1737664233498,-500.0,0.00017098,2]
[350163452,1737664233508,-500.0,0.00017098,2]
[350163453,1737664233517,-500.0,0.00017098,2]
[350163454,1737664233526,-500.0,0.00017098,2]
[350163455,1737664233536,-500.0,0.00017098,2]
[350163456,1737664233545,-500.0,0.00017098,2]
[350163457,1737664233555,-500.0,0.00017098,2]
[350163458,1737664233564,-500.0,0.00017098,2]
[350163459,1737664233573,-500.0,0.00017098,2]
[350163460,1737664233582,-500.0,0.00017098,2]
[350163461,1737664233591,-500.0,0.00017098,2]
[350163462,1737664233601,-500.0,0.00017098,2]
[350163463,1737664233610,-500.0,0.00017098,2]
[350163464,1737664233619,-500.0,0.00017098,2]
[350163465,1737664233628,-500.0,0.00017098,2]
[350163466,1737664233638,-500.0,0.00017098,2]
[350163467,1737664233647,-500.0,0.00017098,2]
[350163468,1737664233656,-500.0,0.00017098,2]
[350163469,1737664233665,-500.0,0.00017098,2]
[350163470,1737664233681,-500.0,0.00017098,2]
[350163471,1737664233690,-500.0,0.00017098,2]
[350163472,1737664233699,-500.0,0.00017098,2]
[350163473,1737664233709,-500.0,0.00017098,2]
[350163474,1737664233718,-500.0,0.00017098,2]
[350163475,1737664233727,-500.0,0.00017098,2]
[350163476,1737664233736,-500.0,0.00017098,2]
[350163477,1737664233748,-1023.09,0.00017098,2]
[350163478,1737664233757,-500.0,0.00017098,2]
[350163479,1737664233766,-844.2,0.00017098,2]
[350163480,1737664233775,-500.0,0.00017098,2]
[350163481,1737664233785,-500.0,0.00017098,2]
[350163482,1737664233794,-681.37,0.00017098,2]
[350163483,1737664233803,-500.0,0.00017098,2]
[350163484,1737664233812,-500.0,0.00017098,2]
[350163485,1737664233823,-854.39,0.00017098,2]
[350163486,1737664233835,-500.0,0.00017098,2]
[350163487,1737664233844,-500.0,0.00017098,2]
[350163488,1737664233854,-1001.38,0.00017098,2]
[350163489,1737664233863,-500.0,0.00017098,2]
[350163490,1737664233873,-783.74,0.00017098,2]
[350163491,1737664233882,-500.0,0.00017098,2]
[350163492,1737664233891,-500.0,0.00017098,2]
[350163493,1737664233899,-500.0,0.00017098,2]
[350163494,1737664233908,-500.0,0.00017098,2]
[350163495,1737664233917,-616.92,0.00017098,2]
[350163496,1737664233928,-500.0,0.00017098,2]
[350163497,1737664233937,-847.43,0.00017098,2]
[350163498,1737664233946,-500.0,0.00017098,2]
[350163499,1737664233955,-500.0,0.00017098,2]
[350163500,1737664233964,-500.0,0.00017098,2]
[350163501,1737664233973,-500.0,0.00017098,2]
[350163502,1737664233982,-863.43,0.00017098,2]
[350163503,1737664233991,-500.0,0.00017099,2]
[350163504,1737664234003,-500.0,0.00017099,2]
[350163505,1737664234013,-500.0,0.00017099,2]
[350163506,1737664234022,-500.0,0.00017099,2]
[350163507,1737664234032,-176.47547056,0.00017099,2]
[350163508,1737664234042,-500.0,0.00017099,2]
[350163509,1737664234051,-500.0,0.00017099,2]
[350163510,1737664234061,-500.0,0.00017099,2]
[350163511,1737664234071,-500.0,0.00017099,2]
[350163512,1737664234080,-563.5931448,0.00017099,2]
[350163513,1737664234090,-500.0,0.00017099,2]
[350163514,1737664234100,-500.0,0.00017099,2]
[350163515,1737664234110,-201.0,0.0001718,2]
[350163516,1737664234120,-241.94461114,0.00017245,2]
[350163517,1737664234130,-5000.0,0.00017272,2]
[350163518,1737664234140,-500.45,0.00017361,2]
[350163519,1737664234150,-500.0,0.0001737,2]
[350163520,1737664234161,-500.0,0.0001737,2]
[350163521,1737664234172,-500.0,0.0001737,2]
[350163522,1737664234182,-500.0,0.0001737,2]
[350163523,1737664234192,-500.0,0.0001737,2]
[350163524,1737664234202,-500.0,0.0001737,2]
[350163525,1737664234212,-250.01229439,0.0001737,2]
[350163526,1737664234222,-500.0,0.00017371,2]
[350163527,1737664234231,-1018.87,0.00017371,2]
[350163528,1737664234241,-428.930382,0.00017371,2]
[350163529,1737664234257,-500.0,0.00017371,2]
[350163530,1737664234266,-500.0,0.00017371,2]
[350163531,1737664234276,-305.256379,0.00017371,2]
[350163532,1737664234285,-500.0,0.00017371,2]
[350163533,1737664234294,-509.89,0.00017371,2]
[350163534,1737664234304,-500.0,0.00017371,2]
[350163535,1737664234313,-158.949648,0.00017371,2]
[350163536,1737664234322,-159.458686,0.00017371,2]
[350163537,1737664234331,-691.83,0.00017371,2]
[350163538,1737664234341,-893.77,0.00017371,2]
[350163539,1737664234351,-500.0,0.00017371,2]
[350163540,1737664234361,-1224.03,0.00017371,2]
[350163541,1737664234371,-1178.94,0.00017371,2]
[350163542,1737664234381,-801.74,0.00017371,2]
[350163543,1737664234391,-500.0,0.00017371,2]
[350163544,1737664234400,-941.15,0.00017371,2]
[350163545,1737664234409,-1911.95,0.00017371,2]
[350163546,1737664234419,-977.52,0.00017371,2]
[350163547,1737664234428,-500.0,0.00017371,2]
[350163548,1737664234439,-601.73,0.00017371,2]
[350163549,1737664234450,-500.0,0.00017371,2]
[350163550,1737664234459,-1203.86,0.00017371,2]
[350163551,1737664234469,-614.76,0.00017371,2]
[350163552,1737664234479,-521.93,0.00017371,2]
[350163553,1737664234488,-500.0,0.00017371,2]
[350163554,1737664234502,-500.0,0.00017371,2]
[350163555,1737664234512,-500.0,0.00017371,2]
[350163556,1737664234521,-1027.64,0.00017371,2]
[350163557,1737664234531,-500.0,0.00017371,2]
[350163558,1737664234540,-824.21,0.00017371,2]
[350163559,1737664234550,-500.0,0.00017372,2]
[350163560,1737664234559,-500.0,0.00017372,2]
[350163561,1737664234569,-500.0,0.00017372,2]
[350163562,1737664234578,-500.0,0.00017372,2]
[350163563,1737664234587,-500.0,0.00017372,2]
[350163564,1737664234597,-500.0,0.00017372,2]
[350163565,1737664234606,-500.0,0.00017372,2]
[350163566,1737664234615,-500.0,0.00017372,2]
[350163567,1737664234624,-500.0,0.00017372,2]
[350163568,1737664234635,-500.0,0.00017372,2]
[350163569,1737664234644,-500.0,0.00017372,2]
[350163570,1737664234653,-504.70157677,0.00017372,2]
[350163571,1737664234663,-503.3057324,0.00017372,2]
[350163572,1737664234672,-449.2662721,0.00017372,2]
[350163573,1737664234681,-500.0,0.00017372,2]
[350163574,1737664234691,-500.0,0.00017372,2]
[350163575,1737664234700,-500.0,0.00017372,2]
[350163576,1737664234710,-500.0,0.00017372,2]
[350163577,1737664234719,-500.0,0.00017372,2]
[350163578,1737664234728,-500.0,0.00017372,2]
[350163579,1737664234740,-500.0,0.00017372,2]
[350163580,1737664234753,-500.0,0.00017372,2]
[350163581,1737664234763,-500.0,0.00017372,2]
[350163582,1737664234772,-554.04,0.00017372,2]
[350163583,1737664234782,-500.0,0.00017372,2]
[350163584,1737664234791,-593.21,0.00017372,2]
[350163585,1737664234801,-500.0,0.00017372,2]
[350163586,1737664234810,-500.0,0.00017372,2]
[350163587,1737664234820,-500.0,0.00017372,2]
[350163588,1737664234829,-500.0,0.00017372,2]
[350163589,1737664234839,-500.0,0.00017372,2]
[350163590,1737664234852,-500.0,0.00017372,2]
[350163591,1737664234861,-500.0,0.00017372,2]
[350163592,1737664234871,-500.0,0.00017372,2]
[350163593,1737664234880,-500.0,0.00017372,2]
[350163594,1737664234888,-500.0,0.00017372,2]
[350163595,1737664234898,-500.0,0.00017372,2]
[350163596,1737664234908,-500.0,0.00017372,2]
[350163597,1737664234918,-500.0,0.00017372,2]
[350163598,1737664234928,-500.0,0.00017372,2]
[350163599,1737664234937,-500.0,0.00017372,2]
[350163600,1737664234946,-500.0,0.00017372,2]
[350163601,1737664234955,-500.0,0.00017372,2]
[350163602,1737664234964,-500.0,0.00017372,2]
[350163603,1737664234974,-608.72,0.00017372,2]
[350163604,1737664234983,-500.0,0.00017372,2]
[350163605,1737664234992,-500.0,0.00017372,2]
[350163606,1737664235005,-500.0,0.00017372,2]
[350163607,1737664235014,-500.0,0.00017372,2]
[350163608,1737664235024,-500.0,0.00017372,2]
[350163609,1737664235033,-500.0,0.00017372,2]
[350163610,1737664235042,-500.0,0.00017372,2]
[350163611,1737664235052,-500.0,0.00017372,2]
[350163612,1737664235061,-500.0,0.00017372,2]
[350163613,1737664235071,-500.0,0.00017372,2]
[350163614,1737664235080,-500.0,0.00017372,2]
[350163615,1737664235089,-500.0,0.00017372,2]
[350163616,1737664235098,-500.0,0.00017372,2]
[350163617,1737664235108,-500.0,0.00017372,2]
[350163618,1737664235116,-631.08,0.00017372,2]
[350163619,1737664235126,-500.0,0.00017372,2]
[350163620,1737664235135,-505.47479646,0.00017372,2]
[350163621,1737664235143,-144.66118402,0.00017372,2]
[350163624,1737664238119,-210.56305478,0.00015915,2]
[350163625,1737664238130,-50.52394522,0.00017098,2]
[350163626,1737664238288,-449.47605478,0.00017098,2]
[350163627,1737664238299,-190.06943102,0.00017098,2]
[350163628,1737664238960,-309.93056898,0.00017098,2]
[350163629,1737664238969,-500.0,0.0001737,2]
[350163630,1737664238979,-500.0,0.0001737,2]
[350163631,1737664238989,-500.0,0.00017371,2]
[350163632,1737664239002,-355.33881598,0.00017372,2]
[350163633,1737664239011,-79.28417253,0.00017372,2]
[350163634,1737664239023,-420.71582747,0.00017372,2]
[350163635,1737664239033,-500.0,0.00017372,2]
[350163636,1737664239042,-159.10917253,0.00017372,2]
[350163637,1737664239055,-1464.09082747,0.00017372,2]
[350163638,1737664239064,-332.31946952,0.00017372,2]
[350163789,1737664240353,-210.56305478,0.000162,2]
[350163792,1737664240363,-127.35080353,0.0001737,2]
[350163803,1737664240414,-372.64919647,0.0001737,2]
[350163806,1737664240424,-167.68053048,0.00017372,2]
[350163809,1737664240433,-500.0,0.00017372,2]
[350163812,1737664240442,-500.0,0.00017372,2]
[350163815,1737664240451,-500.0,0.00017372,2]
[350163818,1737664240460,-500.0,0.00017372,2]
[350163821,1737664240470,-500.0,0.00017372,2]
[350163824,1737664240479,-500.0,0.00017372,2]
[350163827,1737664240488,-500.0,0.00017372,2]
[350163830,1737664240497,-500.0,0.00017372,2]
[350163833,1737664240511,-500.0,0.00017372,2]
[350163836,1737664240521,-500.0,0.00017372,2]
[350163839,1737664240531,-500.0,0.00017372,2]
[350163842,1737664240540,-1435.22,0.00017372,2]
[350163845,1737664240549,-500.0,0.00017372,2]
[350163848,1737664240558,-500.0,0.00017372,2]
[350163851,1737664240567,-500.0,0.00017372,2]
[350163854,1737664240577,-500.0,0.00017372,2]
[350163857,1737664240586,-1023.09,0.00017372,2]
[350163860,1737664240595,-500.0,0.00017372,2]
[350163863,1737664240604,-500.0,0.00017372,2]
[350163866,1737664240613,-500.0,0.00017372,2]
[350163869,1737664240622,-844.2,0.00017372,2]
[350163872,1737664240631,-500.0,0.00017372,2]
[350163875,1737664240640,-500.0,0.00017372,2]
[350163877,1737664240648,-500.0,0.00017372,2]
[350163879,1737664240658,-500.0,0.00017372,2]
[350163883,1737664240667,-500.0,0.00017372,2]
[350163884,1737664240676,-681.37,0.00017372,2]
[350163887,1737664240685,-500.0,0.00017372,2]
[350163890,1737664240694,-500.0,0.00017372,2]
[350163892,1737664240703,-547.45848197,0.00017372,2]
[350163893,1737664240712,-500.0,0.00017372,2]
[350163895,1737664240722,-500.0,0.00017372,2]
[350163897,1737664240732,-854.39,0.00017372,2]
[350163898,1737664240741,-500.0,0.00017372,2]
[350163900,1737664240755,-500.0,0.00017372,2]
[350163902,1737664240765,-500.0,0.00017372,2]
[350163904,1737664240775,-1001.38,0.00017372,2]
[350163905,1737664240784,-500.0,0.00017372,2]
[350163908,1737664240794,-533.0,0.00017372,2]
[350163911,1737664240804,-500.0,0.00017372,2]
[350163913,1737664240813,-500.0,0.00017372,2]
[350163916,1737664240824,-500.0,0.00017372,2]
[350163919,1737664240836,-783.74,0.00017372,2]
[350163922,1737664240845,-500.0,0.00017372,2]
[350163925,1737664240855,-500.0,0.00017372,2]
[350163927,1737664240864,-500.0,0.00017372,2]
[350163930,1737664240875,-500.0,0.00017372,2]
[350163933,1737664240886,-500.0,0.00017372,2]
[350163936,1737664240896,-500.0,0.00017372,2]
[350163939,1737664240907,-500.0,0.00017372,2]
[350163941,1737664240916,-616.92,0.00017372,2]
[350163944,1737664240926,-500.0,0.00017372,2]
[350163947,1737664240936,-847.43,0.00017372,2]
[350163950,1737664240946,-500.0,0.00017372,2]
[350163953,1737664240957,-505.27246082,0.00017372,2]
[350163955,1737664240966,-581.20618135,0.00017372,2]
[350163958,1737664240976,-500.0,0.00017372,2]
[350163961,1737664240987,-500.0,0.00017372,2]
[350163964,1737664240997,-500.0,0.00017372,2]
[350163967,1737664241013,-863.43,0.00017372,2]
[350163969,1737664241022,-500.0,0.00017372,2]
[350163972,1737664241032,-500.0,0.00017372,2]
[350163975,1737664241043,-500.0,0.00017372,2]
[350163978,1737664241053,-500.0,0.00017373,2]
[350163981,1737664241063,-150.0,0.00017378,2]
[350163984,1737664241072,-1309.923,0.00017417,2]
[350163987,1737664241081,-241.94461114,0.00017417,2]
[350163989,1737664241091,-6835.0,0.00017468,2]
[350163992,1737664241101,-323.0,0.00017472,2]
[350163995,1737664241112,-189.67,0.00017505,2]
[350163997,1737664241121,-11211.0558,0.00017545,2]
[350164000,1737664241131,-3142.87144463,0.00017545,2]
[350164002,1737664241140,-500.0,0.00017562,2]
[350164004,1737664241150,-500.0,0.00017562,2]
[350164006,1737664241159,-237.24862889,0.00017562,2]
[350164008,1737664241169,-500.0,0.00017562,2]
[350164010,1737664241178,-500.0,0.00017562,2]
[350164012,1737664241187,-526.48,0.00017562,2]
[350164014,1737664241197,-973.64,0.00017562,2]
[350164016,1737664241208,-500.0,0.00017562,2]
[350164018,1737664241218,-500.0,0.00017562,2]
[350164020,1737664241227,-766.88,0.00017562,2]
[350164022,1737664241236,-500.0,0.00017562,2]
[350164024,1737664241245,-500.0,0.00017562,2]
[350164026,1737664241263,-500.0,0.00017562,2]
[350164028,1737664241273,-500.0,0.00017562,2]
[350164030,1737664241283,-698.41,0.00017562,2]
[350164032,1737664241292,-500.0,0.00017562,2]
[350164034,1737664241301,-500.0,0.00017562,2]
[350164036,1737664241310,-500.0,0.00017562,2]
[350164038,1737664241320,-500.0,0.00017562,2]
[350164040,1737664241329,-500.0,0.00017562,2]
[350164042,1737664241340,-500.0,0.00017562,2]
[350164044,1737664241352,-500.0,0.00017562,2]
[350164046,1737664241362,-500.0,0.00017562,2]
[350164048,1737664241371,-500.0,0.00017562,2]
[350164050,1737664241381,-500.0,0.00017562,2]
[350164052,1737664241390,-500.0,0.00017562,2]
[350164054,1737664241400,-500.0,0.00017562,2]
[350164056,1737664241409,-500.0,0.00017562,2]
[350164058,1737664241419,-500.0,0.00017562,2]
[350164060,1737664241429,-500.0,0.00017562,2]
[350164062,1737664241439,-500.0,0.00017562,2]
[350164064,1737664241448,-500.0,0.00017562,2]
[350164066,1737664241457,-500.0,0.00017562,2]
[350164069,1737664241467,-830.42,0.00017562,2]
[350164071,1737664241476,-1875.05,0.00017562,2]
[350164072,1737664241485,-500.0,0.00017562,2]
[350164074,1737664241494,-500.0,0.00017562,2]
[350164077,1737664241510,-500.0,0.00017562,2]
[350164078,1737664241519,-500.0,0.00017562,2]
[350164081,1737664241533,-500.0,0.00017562,2]
[350164083,1737664241545,-500.0,0.00017562,2]
[350164085,1737664241557,-843.82,0.00017562,2]
[350164088,1737664241569,-500.0,0.00017562,2]
[350164090,1737664241581,-500.0,0.00017562,2]
[350164092,1737664241591,-241.94461114,0.0001759,2]
[350164094,1737664241603,-201.0,0.0001763,2]
[350164096,1737664241615,-500.0,0.00017644,2]
[350164099,1737664241627,-500.0,0.00017644,2]
[350164101,1737664241638,-500.0,0.00017644,2]
[350164103,1737664241650,-500.0,0.00017644,2]
[350164106,1737664241662,-500.0,0.00017644,2]
[350164108,1737664241674,-566.51876931,0.00017644,2]
[350164110,1737664241686,-500.0,0.00017645,2]
[350164112,1737664241697,-503.09969464,0.00017645,2]
[350164115,1737664241709,-500.0,0.00017645,2]
[350164117,1737664241720,-500.0,0.00017645,2]
[350164119,1737664241733,-171.0045855,0.00017645,2]
[350164121,1737664241745,-500.0,0.00017645,2]
[350164124,1737664241765,-328.18829024,0.00017645,2]
[350164126,1737664241778,-500.0,0.00017645,2]
[350164128,1737664241791,-500.0,0.00017645,2]
[350164130,1737664241804,-473.34814452,0.00017645,2]
[350164133,1737664241819,-500.0,0.00017645,2]
[350164135,1737664241834,-500.0,0.00017645,2]
[350164137,1737664241848,-500.0,0.00017645,2]
[350164139,1737664241866,-513.63049392,0.00017645,2]
[350164142,1737664241880,-500.0,0.00017645,2]
[350164144,1737664241892,-518.64308734,0.00017645,2]
[350164146,1737664241906,-336.51617826,0.00017645,2]
[350164149,1737664241923,-163.48382174,0.00017645,2]
[350164151,1737664241936,-500.0,0.00017645,2]
[350164153,1737664241948,-500.0,0.00017645,2]
[350164155,1737664241960,-500.0,0.00017645,2]
[350164158,1737664241973,-508.65621369,0.00017645,2]
[350164160,1737664241986,-500.0,0.00017645,2]
[350164162,1737664241997,-500.0,0.00017645,2]
[350164164,1737664242017,-500.0,0.00017645,2]
[350164167,1737664242028,-500.0,0.00017645,2]
[350164169,1737664242039,-500.0,0.00017645,2]
[350164171,1737664242050,-500.0,0.00017645,2]
[350164173,1737664242061,-500.0,0.00017645,2]
[350164175,1737664242071,-500.0,0.00017645,2]
[350164178,1737664242084,-500.0,0.00017645,2]
[350164180,1737664242097,-500.0,0.00017645,2]
[350164182,1737664242107,-510.34421846,0.00017645,2]
[350164184,1737664242118,-510.6058835,0.00017645,2]
[350164186,1737664242128,-500.0,0.00017645,2]
[350164189,1737664242140,-514.04329541,0.00017645,2]
[350164191,1737664242151,-500.0,0.00017645,2]
[350164193,1737664242163,-500.0,0.00017645,2]
[350164195,1737664242175,-500.0,0.00017645,2]
[350164198,1737664242187,-500.0,0.00017645,2]
[350164200,1737664242197,-500.0,0.00017645,2]
[350164202,1737664242208,-404.61051367,0.00017645,2]
[350164204,1737664242219,-500.0,0.00017645,2]
[350164206,1737664242229,-500.0,0.00017645,2]
[350164208,1737664242242,-500.0,0.00017645,2]